[Event "*** Titled Tuesday Blitz"]
[Site "Chess.com"]
[Date "2020.05.05"]
[Round "3"]
[White "BillCoe"]
[Black "kasparicy"]
[Result "0-1"]
[WhiteElo "2013"]
[BlackElo "2293"]
[TimeControl "180+1"]
[EndTime "10:28:30 PDT"]
[Termination "kasparicy won by resignation"]

1. e4 {[%clk 0:03:00.9]} 1... c5 {[%clk 0:02:56.3]} 2. Nf3 {[%clk 0:03:01.1]}
2... d6 {[%clk 0:02:56.8]} 3. d4 {[%clk 0:03:01.5]} 3... cxd4 {[%clk 0:02:57.7]}
4. Nxd4 {[%clk 0:03:01.9]} 4... Nf6 {[%clk 0:02:55.4]} 5. Nc3 {[%clk 0:03:02.3]}
5... a6 {[%clk 0:02:54.5]} 6. h3 {[%clk 0:03:01.8]} 6... e6 {[%clk 0:02:53.2]}
7. g4 {[%clk 0:03:00.9]} 7... b5 {[%clk 0:02:46.7]} 8. Bg2 {[%clk 0:02:59.6]}
8... Bb7 {[%clk 0:02:46.1]} 9. g5 {[%clk 0:02:55.4]} 9... Nfd7 {[%clk
0:02:43.6]} 10. h4 {[%clk 0:02:54.6]} 10... Nb6 {[%clk 0:02:40.2]} 11. O-O
{[%clk 0:02:52.1]} 11... Be7 {[%clk 0:02:38.5]} 12. b3 {[%clk 0:02:49]} 12...
N8d7 {[%clk 0:02:37.8]} 13. Nce2 {[%clk 0:02:48.6]} 13... d5 {[%clk 0:02:32.5]}
14. Ng3 {[%clk 0:02:42.3]} 14... dxe4 {[%clk 0:02:30.3]} 15. Nxe4 {[%clk
0:02:41.9]} 15... Qc7 {[%clk 0:02:30.1]} 16. Bb2 {[%clk 0:02:38.9]} 16... Nc5
{[%clk 0:02:30.2]} 17. Qg4 {[%clk 0:02:24.8]} 17... Nxe4 {[%clk 0:02:26.3]} 18.
Bxe4 {[%clk 0:02:23.7]} 18... Bxe4 {[%clk 0:02:26.4]} 19. Qxe4 {[%clk
0:02:21.6]} 19... O-O {[%clk 0:02:22.2]} 20. Rac1 {[%clk 0:02:12.4]} 20... Rad8
{[%clk 0:02:20.1]} 21. Nc6 {[%clk 0:02:00.4]} 21... Rd5 {[%clk 0:01:59]} 22.
Nxe7+ {[%clk 0:01:59.5]} 22... Qxe7 {[%clk 0:01:59.9]} 23. c4 {[%clk 0:01:57.4]}
23... bxc4 {[%clk 0:01:57.1]} 24. bxc4 {[%clk 0:01:58.1]} 24... Rd2 {[%clk
0:01:55]} 25. Qe5 {[%clk 0:01:45.4]} 25... f6 {[%clk 0:01:46.5]} 26. Qc3 {[%clk
0:01:43.7]} 26... Nxc4 {[%clk 0:01:36.5]} 27. Qxc4 {[%clk 0:01:35.9]} 27... Rxb2
{[%clk 0:01:34.6]} 28. Rce1 {[%clk 0:01:34.2]} 28... fxg5 {[%clk 0:01:29.2]} 29.
Rxe6 {[%clk 0:01:30.2]} 29... Qf7 {[%clk 0:01:29.5]} 30. hxg5 {[%clk 0:01:16.7]}
30... Rxf2 {[%clk 0:01:27.1]} 31. Rxf2 {[%clk 0:01:10.4]} 31... Qxf2+ {[%clk
0:01:25.7]} 32. Kh1 {[%clk 0:01:10.5]} 32... Qf3+ {[%clk 0:01:24.4]} 33. Kg1
{[%clk 0:01:09.5]} 33... Qg3+ {[%clk 0:01:21.2]} 34. Kh1 {[%clk 0:01:08.3]}
34... Kh8 {[%clk 0:01:18.4]} 35. Qe2 {[%clk 0:00:59.8]} 35... Qxg5 {[%clk
0:01:14.7]} 36. Re8 {[%clk 0:00:53.2]} 36... Qd5+ {[%clk 0:01:03.9]} 37. Kg1
{[%clk 0:00:49.3]} 37... Qc5+ {[%clk 0:01:00.2]} 38. Kh2 {[%clk 0:00:46]} 38...
Qd6+ {[%clk 0:00:57.9]} 39. Kg1 {[%clk 0:00:45.1]} 39... Qg6+ {[%clk 0:00:41.9]}
0-1

[Event "*** Titled Tuesday Blitz"]
[Site "Chess.com"]
[Date "2020.05.05"]
[Round "3"]
[White "calin_dragomirescu"]
[Black "cukin84"]
[Result "0-1"]
[WhiteElo "2296"]
[BlackElo "2065"]
[TimeControl "180+1"]
[EndTime "10:28:31 PDT"]
[Termination "cukin84 won by resignation"]

1. Nf3 {[%clk 0:03:00.9]} 1... f5 {[%clk 0:03:00]} 2. g3 {[%clk 0:03:00.2]} 2...
Nf6 {[%clk 0:03:00.1]} 3. d4 {[%clk 0:03:00.4]} 3... d6 {[%clk 0:02:59.6]} 4.
Bg2 {[%clk 0:03:00.7]} 4... g6 {[%clk 0:02:59.5]} 5. O-O {[%clk 0:03:01]} 5...
Bg7 {[%clk 0:02:59.7]} 6. c4 {[%clk 0:03:01.6]} 6... O-O {[%clk 0:02:59.8]} 7.
Nc3 {[%clk 0:03:02.2]} 7... Qe8 {[%clk 0:03:00]} 8. b3 {[%clk 0:03:02.5]} 8...
c6 {[%clk 0:02:55.6]} 9. Bb2 {[%clk 0:03:01.2]} 9... e5 {[%clk 0:02:55.8]} 10.
dxe5 {[%clk 0:03:00.6]} 10... dxe5 {[%clk 0:02:56]} 11. e4 {[%clk 0:02:58.1]}
11... Nh5 {[%clk 0:02:52.4]} 12. exf5 {[%clk 0:02:54]} 12... gxf5 {[%clk
0:02:51.6]} 13. Re1 {[%clk 0:02:50.4]} 13... e4 {[%clk 0:02:47.5]} 14. Nh4
{[%clk 0:02:49.3]} 14... Qf7 {[%clk 0:02:31.5]} 15. Na4 {[%clk 0:02:47.1]} 15...
Bxb2 {[%clk 0:02:27.6]} 16. Nxb2 {[%clk 0:02:47.2]} 16... Nd7 {[%clk 0:02:27.6]}
17. Qd6 {[%clk 0:02:40.2]} 17... Qf6 {[%clk 0:02:14.2]} 18. Rad1 {[%clk
0:02:37.8]} 18... Qxb2 {[%clk 0:02:11.8]} 19. Qe6+ {[%clk 0:02:31.5]} 19... Kh8
{[%clk 0:02:00.5]} 20. Rxd7 {[%clk 0:02:17.1]} 20... Bxd7 {[%clk 0:01:59.6]} 21.
Qxd7 {[%clk 0:02:17.1]} 21... Qg7 {[%clk 0:01:57.3]} 22. Qd1 {[%clk 0:02:10.6]}
22... Nf6 {[%clk 0:01:55.6]} 23. Nxf5 {[%clk 0:02:07.6]} 23... Qd7 {[%clk
0:01:55.4]} 24. Ne3 {[%clk 0:02:02.7]} 24... Qxd1 {[%clk 0:01:53.9]} 25. Rxd1
{[%clk 0:02:02.7]} 25... Rad8 {[%clk 0:01:53.7]} 26. Kf1 {[%clk 0:01:55.2]}
26... Rxd1+ {[%clk 0:01:52.4]} 27. Nxd1 {[%clk 0:01:55.3]} 27... Ng4 {[%clk
0:01:52.5]} 28. h3 {[%clk 0:01:52.8]} 28... Nxf2 {[%clk 0:01:45.5]} 29. Ne3
{[%clk 0:01:44.3]} 29... Nd1+ {[%clk 0:01:33.9]} 30. Ke2 {[%clk 0:01:40.1]}
30... Nxe3 {[%clk 0:01:32.8]} 31. Kxe3 {[%clk 0:01:40.3]} 31... Kg7 {[%clk
0:01:33.1]} 32. Bxe4 {[%clk 0:01:39.3]} 32... h6 {[%clk 0:01:33.4]} 33. h4
{[%clk 0:01:37.3]} 33... Kf6 {[%clk 0:01:33.3]} 34. g4 {[%clk 0:01:37.1]} 34...
Ke5 {[%clk 0:01:33.6]} 35. g5 {[%clk 0:01:35.7]} 35... hxg5 {[%clk 0:01:33.4]}
36. hxg5 {[%clk 0:01:35.9]} 36... Rf1 {[%clk 0:01:33.4]} 37. Bd3 {[%clk
0:01:31.7]} 37... Re1+ {[%clk 0:01:31.4]} 38. Kd2 {[%clk 0:01:30.1]} 38... Rg1
{[%clk 0:01:30.2]} 39. g6 {[%clk 0:01:26.9]} 39... Kd4 {[%clk 0:01:30.4]} 40.
Bf5 {[%clk 0:01:22.3]} 40... Rg2+ {[%clk 0:01:28.6]} 41. Ke1 {[%clk 0:01:22.1]}
41... Ke3 {[%clk 0:01:27.5]} 42. Kd1 {[%clk 0:01:17.6]} 42... Rg5 {[%clk
0:01:25.8]} 43. Bb1 {[%clk 0:01:13.1]} 43... a5 {[%clk 0:01:21]} 44. Kc1 {[%clk
0:01:12.8]} 44... Rg2 {[%clk 0:01:19.1]} 45. Bc2 {[%clk 0:01:11.2]} 45... Kd4
{[%clk 0:01:17.4]} 46. Kb2 {[%clk 0:01:10.7]} 46... c5 {[%clk 0:01:17]} 47. a3
{[%clk 0:01:10.2]} 47... b6 {[%clk 0:01:16.4]} 48. Kb1 {[%clk 0:00:59.5]} 48...
Kc3 {[%clk 0:01:16.3]} 49. Be4 {[%clk 0:00:58.8]} 49... Rg1+ {[%clk 0:01:16.2]}
50. Ka2 {[%clk 0:00:58.5]} 50... Rg4 {[%clk 0:01:15.2]} 51. Bf5 {[%clk 0:00:57]}
51... Rg2+ {[%clk 0:01:14.8]} 52. Kb1 {[%clk 0:00:55.3]} 52... Kxb3 {[%clk
0:01:14.9]} 53. Kc1 {[%clk 0:00:55.8]} 53... Kxc4 {[%clk 0:01:15.2]} 54. Kd1
{[%clk 0:00:55.6]} 54... Kb3 {[%clk 0:01:15.2]} 55. Ke1 {[%clk 0:00:53.9]} 55...
Kxa3 {[%clk 0:01:15.4]} 56. Kf1 {[%clk 0:00:54.2]} 56... Rg5 {[%clk 0:01:15.1]}
57. Kf2 {[%clk 0:00:54.4]} 57... Rxf5+ {[%clk 0:01:14.5]} 0-1

[Event "*** Titled Tuesday Blitz"]
[Site "Chess.com"]
[Date "2020.05.05"]
[Round "3"]
[White "floplover"]
[Black "fmshawnrl123"]
[Result "0-1"]
[WhiteElo "2279"]
[BlackElo "2689"]
[TimeControl "180+1"]
[EndTime "10:28:32 PDT"]
[Termination "fmshawnrl123 won by resignation"]

1. d4 {[%clk 0:03:00.9]} 1... Nf6 {[%clk 0:03:00]} 2. c4 {[%clk 0:03:00.5]} 2...
e6 {[%clk 0:03:00.1]} 3. Nc3 {[%clk 0:03:00.4]} 3... Bb4 {[%clk 0:03:00.4]} 4.
Qc2 {[%clk 0:03:00.3]} 4... O-O {[%clk 0:02:59.9]} 5. e4 {[%clk 0:02:59.6]} 5...
d5 {[%clk 0:02:59.2]} 6. e5 {[%clk 0:02:59.5]} 6... Ne4 {[%clk 0:02:59.2]} 7.
Bd3 {[%clk 0:02:58.9]} 7... c5 {[%clk 0:02:58.6]} 8. Nf3 {[%clk 0:02:59.1]} 8...
cxd4 {[%clk 0:02:56.9]} 9. Nxd4 {[%clk 0:03:00]} 9... Nd7 {[%clk 0:02:57.3]} 10.
Bf4 {[%clk 0:02:59.4]} 10... Ndc5 {[%clk 0:02:52.5]} 11. O-O {[%clk 0:02:55.7]}
11... Bxc3 {[%clk 0:02:33]} 12. bxc3 {[%clk 0:02:53.6]} 12... Nxd3 {[%clk
0:02:33.3]} 13. Qxd3 {[%clk 0:02:54.5]} 13... Nc5 {[%clk 0:02:33.6]} 14. Qg3
{[%clk 0:02:46.1]} 14... Kh8 {[%clk 0:02:27]} 15. cxd5 {[%clk 0:02:41.5]} 15...
exd5 {[%clk 0:02:27.9]} 16. Rad1 {[%clk 0:02:36.8]} 16... Be6 {[%clk 0:02:19.8]}
17. Rfe1 {[%clk 0:01:54.7]} 17... Rc8 {[%clk 0:02:18.9]} 18. Bg5 {[%clk
0:01:52.2]} 18... Qd7 {[%clk 0:02:08.6]} 19. f4 {[%clk 0:01:52.1]} 19... Ne4
{[%clk 0:02:06.4]} 20. Rxe4 {[%clk 0:01:18.8]} 20... dxe4 {[%clk 0:02:07.3]} 21.
Rf1 {[%clk 0:01:18.9]} 21... Bf5 {[%clk 0:02:02]} 22. Bh4 {[%clk 0:00:57.2]}
22... Rc4 {[%clk 0:01:51.6]} 23. Qg5 {[%clk 0:00:55.2]} 23... h6 {[%clk
0:01:31.8]} 24. Qe7 {[%clk 0:00:28.4]} 24... Re8 {[%clk 0:01:15.2]} 25. Qa3
{[%clk 0:00:19.5]} 25... b5 {[%clk 0:01:15.1]} 26. g4 {[%clk 0:00:13.5]} 26...
Bxg4 {[%clk 0:01:09.9]} 27. f5 {[%clk 0:00:13.9]} 27... b4 {[%clk 0:01:08.8]}
28. Qc1 {[%clk 0:00:08.6]} 28... Rxc3 {[%clk 0:01:06.9]} 29. Qf4 {[%clk
0:00:03.3]} 29... Qxd4+ {[%clk 0:01:06.5]} 30. Kh1 {[%clk 0:00:03.6]} 30... Bf3+
{[%clk 0:01:02.7]} 31. Rxf3 {[%clk 0:00:03.7]} 31... Rxf3 {[%clk 0:00:59.5]} 0-1

[Event "*** Titled Tuesday Blitz"]
[Site "Chess.com"]
[Date "2020.05.05"]
[Round "3"]
[White "binbin239"]
[Black "VladimirBelous"]
[Result "0-1"]
[WhiteElo "2435"]
[BlackElo "2726"]
[TimeControl "180+1"]
[EndTime "10:28:35 PDT"]
[Termination "VladimirBelous won by resignation"]

1. d4 {[%clk 0:03:00.8]} 1... Nf6 {[%clk 0:02:56.4]} 2. c4 {[%clk 0:03:00.6]}
2... g6 {[%clk 0:02:56.8]} 3. Nc3 {[%clk 0:03:00]} 3... Bg7 {[%clk 0:02:57.2]}
4. e4 {[%clk 0:02:59.4]} 4... O-O {[%clk 0:02:57.3]} 5. Be2 {[%clk 0:02:58.9]}
5... d6 {[%clk 0:02:57.7]} 6. Nf3 {[%clk 0:02:59.2]} 6... Na6 {[%clk 0:02:57.1]}
7. O-O {[%clk 0:02:57.9]} 7... e5 {[%clk 0:02:57.6]} 8. Be3 {[%clk 0:02:43.4]}
8... Ng4 {[%clk 0:02:53]} 9. Bg5 {[%clk 0:02:43.6]} 9... Qe8 {[%clk 0:02:52.8]}
10. h3 {[%clk 0:02:35.8]} 10... h6 {[%clk 0:02:49.2]} 11. Bc1 {[%clk 0:02:28.3]}
11... Nf6 {[%clk 0:02:48.5]} 12. Be3 {[%clk 0:02:26.5]} 12... exd4 {[%clk
0:02:48.5]} 13. Nxd4 {[%clk 0:02:23.3]} 13... Nxe4 {[%clk 0:02:47.3]} 14. Nxe4
{[%clk 0:02:23.2]} 14... Qxe4 {[%clk 0:02:48.2]} 15. Bf3 {[%clk 0:02:20.5]}
15... Qh4 {[%clk 0:02:48]} 16. Rc1 {[%clk 0:02:03.8]} 16... Re8 {[%clk 0:02:40]}
17. Re1 {[%clk 0:01:45.9]} 17... Nc5 {[%clk 0:02:39.8]} 18. Nb5 {[%clk
0:01:43.2]} 18... Ne6 {[%clk 0:02:17.7]} 19. Nxa7 {[%clk 0:01:37.3]} 19... Bxb2
{[%clk 0:02:16.8]} 20. Rc2 {[%clk 0:01:33.4]} 20... Be5 {[%clk 0:01:37.3]} 21.
Nxc8 {[%clk 0:01:29.5]} 21... Raxc8 {[%clk 0:01:25.3]} 22. Bxb7 {[%clk
0:01:29.2]} 22... Rb8 {[%clk 0:01:22.1]} 23. Bc6 {[%clk 0:01:27.4]} 23... Red8
{[%clk 0:01:22.2]} 24. Qd3 {[%clk 0:01:10.8]} 24... Nf4 {[%clk 0:01:11.2]} 25.
Qe4 {[%clk 0:01:09.5]} 25... Qf6 {[%clk 0:00:32.4]} 26. Ba7 {[%clk 0:00:52.3]}
26... Rb4 {[%clk 0:00:31.8]} 27. a3 {[%clk 0:00:51.5]} 27... Rb3 {[%clk
0:00:31.7]} 28. c5 {[%clk 0:00:50.6]} 28... Nd3 {[%clk 0:00:20.6]} 29. Re3
{[%clk 0:00:48.4]} 29... Rb1+ {[%clk 0:00:18.5]} 0-1

[Event "*** Titled Tuesday Blitz"]
[Site "Chess.com"]
[Date "2020.05.05"]
[Round "3"]
[White "Veiso"]
[Black "IMinTheWings"]
[Result "0-1"]
[WhiteElo "2370"]
[BlackElo "2186"]
[TimeControl "180+1"]
[EndTime "10:28:35 PDT"]
[Termination "IMinTheWings won by resignation"]

1. d4 {[%clk 0:03:00.9]} 1... Nf6 {[%clk 0:02:59.8]} 2. c4 {[%clk 0:03:00.4]}
2... e6 {[%clk 0:03:00]} 3. Nf3 {[%clk 0:03:00]} 3... c5 {[%clk 0:02:59]} 4. d5
{[%clk 0:02:59.8]} 4... b5 {[%clk 0:02:59.6]} 5. Bg5 {[%clk 0:02:56.4]} 5...
exd5 {[%clk 0:02:58.1]} 6. cxd5 {[%clk 0:02:54.2]} 6... d6 {[%clk 0:02:58.4]} 7.
a4 {[%clk 0:02:52.5]} 7... b4 {[%clk 0:02:49.5]} 8. e4 {[%clk 0:02:50.3]} 8...
Nbd7 {[%clk 0:02:43.7]} 9. Nbd2 {[%clk 0:02:49.1]} 9... h6 {[%clk 0:02:35]} 10.
Bh4 {[%clk 0:02:44.8]} 10... Be7 {[%clk 0:02:33.8]} 11. Bb5 {[%clk 0:02:34.9]}
11... O-O {[%clk 0:02:30.7]} 12. O-O {[%clk 0:02:30.2]} 12... Nxd5 {[%clk
0:02:23.8]} 13. Bxe7 {[%clk 0:01:55.5]} 13... Nxe7 {[%clk 0:02:23.2]} 14. Nc4
{[%clk 0:01:55.8]} 14... Nf6 {[%clk 0:02:16.3]} 15. Nxd6 {[%clk 0:01:39.3]}
15... Bg4 {[%clk 0:02:12.1]} 16. Bc4 {[%clk 0:01:34.9]} 16... Qc7 {[%clk
0:01:56.2]} 17. e5 {[%clk 0:01:27.9]} 17... Nd7 {[%clk 0:01:48.6]} 18. Nxf7
{[%clk 0:01:17.1]} 18... Rxf7 {[%clk 0:01:36.9]} 19. e6 {[%clk 0:01:15.1]} 19...
Rf4 {[%clk 0:01:09.6]} 20. Bd5 {[%clk 0:00:47.1]} 20... Nxd5 {[%clk 0:01:04.3]}
21. Qxd5 {[%clk 0:00:48]} 21... Nb6 {[%clk 0:01:04.8]} 22. Qe5 {[%clk
0:00:29.2]} 22... Qxe5 {[%clk 0:00:59.5]} 23. Nxe5 {[%clk 0:00:30.1]} 23... Bxe6
{[%clk 0:00:58.1]} 24. a5 {[%clk 0:00:23.9]} 24... Nc4 {[%clk 0:00:56.1]} 25.
Nd3 {[%clk 0:00:23.7]} 25... Rf5 {[%clk 0:00:54.5]} 26. Rfe1 {[%clk 0:00:14.4]}
26... Bf7 {[%clk 0:00:47.9]} 27. f3 {[%clk 0:00:12.3]} 27... Rd8 {[%clk
0:00:47.2]} 28. Rad1 {[%clk 0:00:10.5]} 28... Rfd5 {[%clk 0:00:45]} 29. Nf2
{[%clk 0:00:10.1]} 0-1

[Event "*** Titled Tuesday Blitz"]
[Site "Chess.com"]
[Date "2020.05.05"]
[Round "3"]
[White "LiamPutnam2008"]
[Black "Ladislav1969"]
[Result "1-0"]
[WhiteElo "2545"]
[BlackElo "2344"]
[TimeControl "180+1"]
[EndTime "10:28:36 PDT"]
[Termination "LiamPutnam2008 won by resignation"]

1. d4 {[%clk 0:02:56.7]} 1... Nf6 {[%clk 0:03:00]} 2. Bg5 {[%clk 0:02:42.6]}
2... d5 {[%clk 0:02:57.2]} 3. e3 {[%clk 0:02:39]} 3... g6 {[%clk 0:02:51.9]} 4.
Bxf6 {[%clk 0:02:34.2]} 4... exf6 {[%clk 0:02:51.4]} 5. g3 {[%clk 0:02:32.6]}
5... f5 {[%clk 0:02:41.7]} 6. Bg2 {[%clk 0:02:31.3]} 6... c6 {[%clk 0:02:36.6]}
7. Ne2 {[%clk 0:02:31.3]} 7... Bd6 {[%clk 0:02:31.3]} 8. O-O {[%clk 0:02:31.3]}
8... O-O {[%clk 0:02:30.8]} 9. c4 {[%clk 0:02:31.8]} 9... dxc4 {[%clk 0:02:30]}
10. Nd2 {[%clk 0:02:27.2]} 10... b5 {[%clk 0:02:28.7]} 11. a4 {[%clk 0:02:25]}
11... bxa4 {[%clk 0:01:55.2]} 12. Qxa4 {[%clk 0:02:16.7]} 12... Be6 {[%clk
0:01:54.3]} 13. Nxc4 {[%clk 0:02:15.6]} 13... Bd5 {[%clk 0:01:49.4]} 14. Na5
{[%clk 0:02:10.3]} 14... Bxg2 {[%clk 0:01:45.2]} 15. Kxg2 {[%clk 0:02:11.2]}
15... Bc7 {[%clk 0:01:39.6]} 16. Rfc1 {[%clk 0:02:02.2]} 16... Qd5+ {[%clk
0:01:30.1]} 17. Kg1 {[%clk 0:01:59.1]} 17... Qf3 {[%clk 0:01:27.2]} 18. Nc3
{[%clk 0:01:44.4]} 18... Re8 {[%clk 0:01:15.6]} 19. d5 {[%clk 0:01:32.2]} 19...
f4 {[%clk 0:01:05.7]} 20. exf4 {[%clk 0:01:25.2]} 20... Nd7 {[%clk 0:00:58]} 21.
Qxc6 {[%clk 0:01:07.2]} 21... Bb6 {[%clk 0:00:55.4]} 22. Rf1 {[%clk 0:01:00.4]}
22... Nc5 {[%clk 0:00:44.9]} 23. d6 {[%clk 0:00:50.6]} 23... Qxc6 {[%clk
0:00:16.3]} 24. Nxc6 {[%clk 0:00:51.5]} 24... Nd3 {[%clk 0:00:16.1]} 25. Nd5
{[%clk 0:00:43]} 25... Bc5 {[%clk 0:00:11.8]} 26. Nf6+ {[%clk 0:00:41.9]} 26...
Kg7 {[%clk 0:00:10.8]} 27. Nxe8+ {[%clk 0:00:42.8]} 27... Rxe8 {[%clk
0:00:10.1]} 28. d7 {[%clk 0:00:43.7]} 1-0

[Event "*** Titled Tuesday Blitz"]
[Site "Chess.com"]
[Date "2020.05.05"]
[Round "3"]
[White "AndrewDGreen"]
[Black "dragos420"]
[Result "0-1"]
[WhiteElo "2275"]
[BlackElo "2508"]
[TimeControl "180+1"]
[EndTime "10:28:38 PDT"]
[Termination "dragos420 won by resignation"]

1. e4 {[%clk 0:03:00.9]} 1... e5 {[%clk 0:02:59.5]} 2. Nf3 {[%clk 0:03:00.8]}
2... Nc6 {[%clk 0:03:00.4]} 3. Bb5 {[%clk 0:02:59.5]} 3... g6 {[%clk 0:03:00.7]}
4. c3 {[%clk 0:02:57.1]} 4... Bg7 {[%clk 0:02:59.9]} 5. O-O {[%clk 0:02:57.1]}
5... Nge7 {[%clk 0:02:53.1]} 6. d4 {[%clk 0:02:56.6]} 6... exd4 {[%clk 0:02:54]}
7. cxd4 {[%clk 0:02:57.5]} 7... a6 {[%clk 0:02:54.3]} 8. Ba4 {[%clk 0:02:57.1]}
8... b6 {[%clk 0:02:54.1]} 9. d5 {[%clk 0:02:45.9]} 9... Na5 {[%clk 0:02:47]}
10. d6 {[%clk 0:02:40.4]} 10... cxd6 {[%clk 0:02:36.7]} 11. Nc3 {[%clk
0:02:39.8]} 11... O-O {[%clk 0:02:35.3]} 12. Bf4 {[%clk 0:02:39.1]} 12... b5
{[%clk 0:02:34.4]} 13. Bc2 {[%clk 0:02:38.6]} 13... Nc4 {[%clk 0:02:33.7]} 14.
Bxd6 {[%clk 0:02:14.4]} 14... Nxb2 {[%clk 0:02:26.5]} 15. Bxe7 {[%clk
0:02:02.3]} 15... Qxe7 {[%clk 0:02:27.4]} 16. Nd5 {[%clk 0:01:57.9]} 16... Qc5
{[%clk 0:02:21.7]} 17. Qe2 {[%clk 0:01:53.3]} 17... Bb7 {[%clk 0:02:17.6]} 18.
Rac1 {[%clk 0:01:48.1]} 18... Bxd5 {[%clk 0:01:53.6]} 19. exd5 {[%clk 0:01:49]}
19... Rfe8 {[%clk 0:01:50.7]} 20. Qd2 {[%clk 0:01:38.1]} 20... Nc4 {[%clk
0:01:49.7]} 21. Qg5 {[%clk 0:01:31.3]} 21... h6 {[%clk 0:01:45.4]} 22. Qg4
{[%clk 0:01:26.9]} 22... Qxd5 {[%clk 0:01:43.6]} 23. Rcd1 {[%clk 0:01:19.2]}
23... Qe6 {[%clk 0:01:43.2]} 24. Qg3 {[%clk 0:01:12]} 24... Rad8 {[%clk
0:01:37.6]} 25. h4 {[%clk 0:01:08.9]} 25... h5 {[%clk 0:01:27.5]} 26. Ng5 {[%clk
0:01:06.8]} 26... Qg4 {[%clk 0:01:24.8]} 27. Qc7 {[%clk 0:00:49]} 27... Qxh4
{[%clk 0:01:18.9]} 28. Nxf7 {[%clk 0:00:38.6]} 28... Kxf7 {[%clk 0:01:15.5]} 29.
Rxd7+ {[%clk 0:00:38.7]} 29... Rxd7 {[%clk 0:01:14.9]} 30. Qxd7+ {[%clk
0:00:39.6]} 30... Qe7 {[%clk 0:01:15.4]} 31. Qd5+ {[%clk 0:00:38.6]} 31... Qe6
{[%clk 0:01:15.4]} 32. Qb7+ {[%clk 0:00:37.3]} 32... Re7 {[%clk 0:01:12.9]} 33.
Qf3+ {[%clk 0:00:37.3]} 33... Kg8 {[%clk 0:01:10.5]} 34. Qg3 {[%clk 0:00:33.7]}
34... Be5 {[%clk 0:01:02.2]} 35. Qg5 {[%clk 0:00:26.9]} 35... Qf6 {[%clk
0:01:01]} 36. Qh6 {[%clk 0:00:26.5]} 36... Rh7 {[%clk 0:00:51.9]} 37. Qc1 {[%clk
0:00:23.9]} 37... Qf4 {[%clk 0:00:51.5]} 0-1

[Event "*** Titled Tuesday Blitz"]
[Site "Chess.com"]
[Date "2020.05.05"]
[Round "3"]
[White "GMartin_Petrov"]
[Black "VojtechPlat"]
[Result "1-0"]
[WhiteElo "2615"]
[BlackElo "2783"]
[TimeControl "180+1"]
[EndTime "10:28:40 PDT"]
[Termination "GMartin_Petrov won by resignation"]

1. e4 {[%clk 0:03:00.9]} 1... d6 {[%clk 0:02:59.1]} 2. d4 {[%clk 0:03:00.3]}
2... Nf6 {[%clk 0:02:59.7]} 3. Nc3 {[%clk 0:03:00.3]} 3... e5 {[%clk 0:03:00.2]}
4. Nf3 {[%clk 0:02:59.4]} 4... Nbd7 {[%clk 0:02:59.8]} 5. Bc4 {[%clk 0:02:59.1]}
5... Be7 {[%clk 0:03:00.1]} 6. O-O {[%clk 0:02:57.8]} 6... O-O {[%clk
0:03:00.3]} 7. a4 {[%clk 0:02:58.4]} 7... a5 {[%clk 0:03:00.9]} 8. Re1 {[%clk
0:02:57.4]} 8... c6 {[%clk 0:03:01.5]} 9. Ba2 {[%clk 0:02:41.8]} 9... exd4
{[%clk 0:02:59]} 10. Nxd4 {[%clk 0:02:41.5]} 10... Nc5 {[%clk 0:02:59]} 11. Qf3
{[%clk 0:02:35.2]} 11... Be6 {[%clk 0:02:57.8]} 12. Nxe6 {[%clk 0:02:28.5]}
12... fxe6 {[%clk 0:02:57.4]} 13. Qh3 {[%clk 0:02:27.4]} 13... d5 {[%clk
0:02:54.1]} 14. Be3 {[%clk 0:02:20.7]} 14... Nfxe4 {[%clk 0:02:42]} 15. Nxe4
{[%clk 0:02:17.7]} 15... Nxe4 {[%clk 0:02:41.7]} 16. Qxe6+ {[%clk 0:02:16.7]}
16... Kh8 {[%clk 0:02:41.4]} 17. Rad1 {[%clk 0:02:15.8]} 17... Bf6 {[%clk
0:02:22.8]} 18. c3 {[%clk 0:01:42.3]} 18... Qc7 {[%clk 0:02:15.2]} 19. Bb1
{[%clk 0:01:36.8]} 19... Rae8 {[%clk 0:02:13.8]} 20. Qh3 {[%clk 0:01:36]} 20...
g6 {[%clk 0:02:00.7]} 21. f3 {[%clk 0:01:28.9]} 21... Ng5 {[%clk 0:01:29.4]} 22.
Bxg5 {[%clk 0:01:26.8]} 22... Bxg5 {[%clk 0:01:29.5]} 23. Bxg6 {[%clk
0:01:23.2]} 23... Rxe1+ {[%clk 0:01:28.8]} 24. Rxe1 {[%clk 0:01:23.5]} 24... Qg7
{[%clk 0:01:19.2]} 25. Bd3 {[%clk 0:01:20.4]} 25... d4 {[%clk 0:01:19.1]} 26.
Kh1 {[%clk 0:01:00.7]} 26... dxc3 {[%clk 0:01:18.3]} 27. bxc3 {[%clk 0:01:00.8]}
27... Bd2 {[%clk 0:01:09.8]} 28. Re6 {[%clk 0:00:55.8]} 28... Rd8 {[%clk
0:01:01]} 29. Qh4 {[%clk 0:00:48.5]} 29... Bg5 {[%clk 0:00:57.5]} 30. Qe4 {[%clk
0:00:48.2]} 30... b5 {[%clk 0:00:30]} 31. h4 {[%clk 0:00:47.7]} 31... Bh6 {[%clk
0:00:22.9]} 32. Re7 {[%clk 0:00:45.1]} 32... Qg6 {[%clk 0:00:19.6]} 33. Rxh7+
{[%clk 0:00:41.7]} 1-0